fUST/lending_fUST_20240229
["ID","MTS","AMOUNT","RATE_DAILY","PERIOD"]
[315591018,1709136633881,-2457.81887025,0.00017995,2]
[315591019,1709136633892,-2111.64420487,0.00017996,2]
[315591020,1709136633902,-719.31845796,0.00017996,2]
[315591021,1709136633913,-527.76651352,0.00017996,2]
[315591022,1709136633923,-557.45474321,0.00017997,2]
[315591023,1709136633932,-538.27532223,0.00017998,2]
[315591024,1709136633942,-15232.41076204,0.00017998,2]
[315591025,1709136633951,-5282.95320769,0.00018,2]
[315591026,1709136633962,-5444.5321749,0.00018,2]
[315591027,1709136633972,-300.0,0.00018843,2]
[315591028,1709136633982,-396.83541765,0.000189,2]
[315591029,1709136633994,-30506.0,0.00019,2]
[315591030,1709136634004,-6690.23653111,0.00019175,2]
[315591099,1709136638508,-400.75162755,0.00017994,2]
[315591101,1709136638517,-11250.21708341,0.00019175,2]
[315591103,1709136638529,-737.51216286,0.00019175,2]
[315591105,1709136638540,-3002.7102,0.00019175,2]
[315591108,1709136638552,-1034.518,0.00019175,2]
[315591197,1709136640833,-1454.07748164,0.00019175,2]
[315591199,1709136640843,-1213.33454667,0.00019177,2]
[315591201,1709136640852,-484.6448808,0.00019178,2]
[315591202,1709136640862,-552.19583959,0.00019178,2]
[315591203,1709136640871,-500.0,0.00019178,2]
[315591204,1709136640880,-500.0,0.00019178,2]
[315591205,1709136640890,-500.0,0.00019178,2]
[315591206,1709136640899,-500.0,0.00019178,2]
[315591207,1709136640908,-500.0,0.00019178,2]
[315591208,1709136640918,-500.0,0.00019178,2]
[315591209,1709136640927,-504.12927821,0.00019178,2]
[315591210,1709136640937,-502.48701273,0.00019178,2]
[315591211,1709136640946,-500.0,0.00019178,2]
[315591212,1709136640955,-500.0,0.00019178,2]
[315591213,1709136640965,-500.0,0.00019178,2]
[315591214,1709136640974,-1031.37,0.00019178,2]
[315591215,1709136640983,-500.0,0.00019178,2]
[315591216,1709136640994,-500.0,0.00019178,2]
[315591217,1709136641004,-501.40336033,0.00019178,2]
[315591218,1709136641014,-500.0,0.00019178,2]
[315591219,1709136641023,-502.55276654,0.00019178,2]
[315591220,1709136641032,-571.76017886,0.00019178,2]
[315591221,1709136641041,-503.07925048,0.00019178,2]
[315591222,1709136641050,-500.0,0.00019178,2]
[315591223,1709136641059,-614.9,0.00019178,2]
[315591224,1709136641069,-500.0,0.00019178,2]
[315591225,1709136641078,-453.12681122,0.00019178,2]
[315591226,1709136641087,-501.60410199,0.00019178,2]
[315591227,1709136641096,-501.29719747,0.00019178,2]
[315591228,1709136641106,-500.0,0.00019178,2]
[315591229,1709136641129,-500.0,0.00019178,2]
[315591230,1709136641139,-500.0,0.00019178,2]
[315591231,1709136641149,-500.0,0.00019178,2]
[315591232,1709136641159,-590.59055546,0.00019178,2]
[315591233,1709136641169,-500.0,0.00019178,2]
[315591234,1709136641179,-500.59452776,0.00019178,2]
[315591235,1709136641191,-500.23477848,0.00019178,2]
[315591236,1709136641200,-500.0,0.00019178,2]
[315591237,1709136641210,-503.75284643,0.00019178,2]
[315591238,1709136641221,-500.0,0.00019178,2]
[315591239,1709136641231,-500.0,0.00019178,2]
[315591240,1709136641243,-737.97,0.00019178,2]
[315591241,1709136641252,-514.93,0.00019178,2]
[315591242,1709136641261,-500.0,0.00019178,2]
[315591243,1709136641272,-500.0,0.00019178,2]
[315591244,1709136641282,-500.0,0.00019178,2]
[315591245,1709136641292,-500.0,0.00019178,2]
[315591246,1709136641302,-500.93234217,0.00019178,2]
[315591247,1709136641313,-936.85,0.00019178,2]
[315591248,1709136641323,-179.50169895,0.00019178,2]
[315591249,1709136641332,-500.0,0.00019178,2]
[315591250,1709136641342,-500.0,0.00019178,2]
[315591251,1709136641351,-6091.43,0.00019178,2]
[315591252,1709136641361,-500.0,0.00019178,2]
[315591253,1709136641370,-532.72803877,0.00019178,2]
[315591254,1709136641381,-3156.15,0.00019178,2]
[315591255,1709136641390,-500.0,0.00019178,2]
[315591256,1709136641400,-500.0,0.00019178,2]
[315591257,1709136641410,-500.0,0.00019178,2]
[315591258,1709136641419,-500.0,0.00019178,2]
[315591259,1709136641430,-1210.06,0.00019178,2]
[315591260,1709136641439,-2586.36,0.00019178,2]
[315591261,1709136641449,-500.0,0.00019178,2]
[315591262,1709136641458,-500.0,0.00019178,2]
[315591263,1709136641467,-7415.11,0.00019178,2]
[315591264,1709136641477,-736.43,0.00019178,2]
[315591265,1709136641487,-500.0,0.00019178,2]
[315591266,1709136641499,-1362.23,0.00019178,2]
[315591267,1709136641508,-614.79,0.00019178,2]
[315591268,1709136641518,-569.5,0.00019178,2]
[315591269,1709136641527,-1036.89,0.00019178,2]
[315591270,1709136641538,-500.0,0.00019178,2]
[315591271,1709136641548,-501.87966091,0.00019178,2]
[315591272,1709136641558,-600.91,0.00019178,2]
[315591273,1709136641568,-925.9,0.00019178,2]
[315591274,1709136641577,-376.43260876,0.00019178,2]
[315591297,1709136642986,-925.27739124,0.00019178,2]
[315591298,1709136642997,-500.0,0.00019178,2]
[315591300,1709136643007,-505.30664244,0.00019178,2]
[315591302,1709136643017,-950.64,0.00019178,2]
[315591304,1709136643026,-118.77596632,0.00019178,2]
[315591342,1709136646000,-383.21778671,0.00019178,2]
[315591343,1709136646009,-500.0,0.00019178,2]
[315591344,1709136646018,-472.33151374,0.00019178,2]
[315591345,1709136646027,-500.0,0.00019178,2]
[315591346,1709136646037,-865.94,0.00019178,2]
[315591347,1709136646046,-500.0,0.00019178,2]
[315591348,1709136646056,-500.0,0.00019178,2]
[315591349,1709136646065,-730.34,0.00019178,2]
[315591350,1709136646075,-500.19932842,0.00019178,2]
[315591351,1709136646085,-500.0,0.00019178,2]
[315591352,1709136646095,-500.0,0.00019178,2]
[315591353,1709136646104,-707.35,0.00019178,2]
[315591354,1709136646114,-500.0,0.00019178,2]
[315591355,1709136646124,-500.0,0.00019178,2]
[315591356,1709136646133,-500.0,0.00019178,2]
[315591357,1709136646143,-3404.92,0.00019178,2]
[315591358,1709136646153,-162.850056,0.00019178,2]
[315591359,1709136646162,-166.666666,0.00019178,2]
[315591360,1709136646172,-500.0,0.00019452,2]
[315591361,1709136646181,-500.0,0.00019452,2]
[315591363,1709136646194,-504.03604102,0.00019452,2]
[315591364,1709136646204,-500.0,0.00019452,2]
[315591366,1709136646215,-442.6750125,0.00019452,2]
[315591367,1709136646225,-1031.37,0.00019452,2]
[315591369,1709136646236,-500.0,0.00019452,2]
[315591370,1709136646246,-500.0,0.00019452,2]
[315591371,1709136646256,-614.9,0.00019452,2]
[315591372,1709136646265,-503.81482744,0.00019452,2]
[315591373,1709136646275,-500.0,0.00019452,2]
[315591374,1709136646284,-500.0,0.00019452,2]
[315591375,1709136646294,-252.29,0.00019452,2]
[315591376,1709136646303,-351.58113958,0.00019452,2]
[315591377,1709136646313,-363.04,0.00019452,2]
[315591378,1709136646322,-737.97,0.00019452,2]
[315591379,1709136646332,-514.93,0.00019452,2]
[315591380,1709136646341,-500.0,0.00019452,2]
[315591381,1709136646350,-936.85,0.00019452,2]
[315591382,1709136646360,-500.0,0.00019452,2]
[315591383,1709136646369,-500.0,0.00019452,2]
[315591384,1709136646378,-6091.43,0.00019452,2]
[315591385,1709136646387,-500.0,0.00019452,2]
[315591386,1709136646396,-500.0,0.00019452,2]
[315591387,1709136646406,-500.0,0.00019452,2]
[315591388,1709136646416,-500.0,0.00019452,2]
[315591389,1709136646426,-500.0,0.00019452,2]
[315591390,1709136646435,-1210.06,0.00019452,2]
[315591391,1709136646445,-2586.36,0.00019452,2]
[315591393,1709136646454,-7415.11,0.00019452,2]
[315591394,1709136646464,-736.43,0.00019452,2]
[315591395,1709136646474,-500.0,0.00019452,2]
[315591396,1709136646483,-1362.23,0.00019452,2]
[315591397,1709136646492,-614.79,0.00019452,2]
[315591398,1709136646502,-1036.89,0.00019452,2]
[315591399,1709136646513,-600.91,0.00019452,2]
[315591400,1709136646523,-925.9,0.00019452,2]
[315591401,1709136646533,-1301.71,0.00019452,2]
[315591402,1709136646542,-500.0,0.00019452,2]
[315591403,1709136646551,-950.64,0.00019452,2]
[315591404,1709136646561,-500.0,0.00019452,2]
[315591405,1709136646570,-865.94,0.00019452,2]
[315591406,1709136646579,-500.0,0.00019452,2]
[315591407,1709136646589,-730.34,0.00019452,2]
[315591408,1709136646598,-179.34109997,0.00019452,2]
[315591409,1709136646608,-707.35,0.00019452,2]
[315591410,1709136646618,-500.0,0.00019452,2]
[315591411,1709136646627,-3404.92,0.00019452,2]
[315591412,1709136646637,-8232.02435619,0.0001949,2]
[315591413,1709136646646,-293.1124308,0.00019626,2]
[315591414,1709136646655,-166.666666,0.00019627,2]
[315591415,1709136646665,-21840.51,0.00019716,3]
[315591416,1709136646675,-151.0,0.00019725,2]
[315591417,1709136646684,-500.0,0.00019726,2]
[315591418,1709136646694,-1031.37,0.00019726,2]
[315591419,1709136646704,-397.13,0.00019726,2]
[315591420,1709136646713,-500.0,0.00019726,2]
[315591421,1709136646723,-614.9,0.00019726,2]
[315591422,1709136646830,-235.249189,0.00019726,2]
[315591423,1709136646841,-500.0,0.00019726,2]
[315591424,1709136646851,-500.0,0.00019726,2]
[315591425,1709136646861,-737.97,0.00019726,2]
[315591426,1709136646870,-943.819706,0.00019726,2]
[315591427,1709136646880,-943.819706,0.00019726,2]
[315591428,1709136646890,-151.628924,0.00019726,2]
[315591429,1709136646899,-514.93,0.00019726,2]
[315591430,1709136646909,-500.0,0.00019726,2]
[315591431,1709136646919,-936.85,0.00019726,2]
[315591432,1709136646929,-151.0,0.00019726,2]
[315591433,1709136646938,-299.067643,0.00019726,2]
[315591434,1709136646948,-500.0,0.00019726,2]
[315591435,1709136646958,-500.0,0.00019726,2]
[315591436,1709136646967,-6.32790763,0.00019726,2]
[315591446,1709136978819,1600.9349547,0.00016869,2]
[315591447,1709137049744,-1863.17330942,0.0001783,2]
[315591448,1709137049770,-155.13341474,0.0001783,2]
[315591449,1709137049790,-2457.81887025,0.00017831,2]
[315591450,1709137049819,-719.31845796,0.00017832,2]
[315591451,1709137049841,-524.55594763,0.00017832,2]
[315591452,1709137177179,274.0626264,0.00016832,2]
[315591453,1709137200899,11015.0382869,0.00017194,2]
[315591454,1709137235335,12109.964132,0.00016818,2]
[315591455,1709137235366,637.3034861,0.00016818,2]
[315591456,1709137249857,4915.3898828,0.00016825,2]
[315591457,1709137252274,-155.15360207,0.00017811,2]
[315591458,1709137252296,-155.15360207,0.00017811,2]
[315591459,1709137252316,-155.15360207,0.00017811,2]
[315591460,1709137252336,-2457.81887025,0.00017811,2]
[315591461,1709137252356,-69.72032354,0.00017811,2]
[315591462,1709137272879,3000.0,0.00016814,2]
[315591463,1709137387079,-592.46406366,0.00017796,2]
[315591464,1709137387100,-557.45474321,0.00017796,2]
[315591465,1709137387120,-744.34995698,0.00017797,2]
[315591466,1709137387143,-290.02402273,0.00017797,2]
[315591467,1709137387162,-155.15515516,0.00017798,2]
[315591468,1709137387183,-400.75162755,0.00017798,2]
[315591469,1709137387206,-164.372374,0.00017798,2]
[315591470,1709137387228,-1863.17330942,0.00017798,2]
[315591471,1709137387248,-155.15515516,0.00017799,2]
[315591472,1709137387268,-2111.64420487,0.00017799,2]
[315591473,1709137387288,-155.15515516,0.00017799,2]
[315591474,1709137387308,-179.53546718,0.000178,2]
[315591475,1709137387328,-155.69178995,0.000178,2]
[315591476,1709137387347,-527.76651352,0.000178,2]
[315591477,1709137387367,-703.08553243,0.000178,2]
[315591478,1709137387388,-690.22092902,0.000178,2]
[315591479,1709137459087,-155.14894299,0.0001771,2]
[315591480,1709137459107,-11.85105701,0.00017711,2]
[315591481,1709137526168,-155.14739002,0.00017705,2]
[315591482,1709137526189,-538.27532223,0.00017706,2]
[315591483,1709137526210,-15232.41076204,0.00017706,2]
[315591484,1709137526230,-2457.81887025,0.00017707,2]
[315591485,1709137526254,-4700.60014085,0.00017707,2]
[315591486,1709137526278,-155.14739002,0.00017707,2]
[315591487,1709137526299,-1719.28582597,0.00017708,2]
[315591488,1709137526319,-64.31429862,0.00017711,2]
[315591581,1709137832002,-164.372374,0.00017699,2]
[315591583,1709137832013,-8007.23444251,0.000177,2]
[315591585,1709137832023,-538.27532223,0.00017701,2]
[315591587,1709137832032,-2457.81887025,0.00017701,2]
[315591589,1709137832042,-2111.64420487,0.00017701,2]
[315591591,1709137832051,-400.75162755,0.00017702,2]
[315591593,1709137832061,-15232.41076204,0.00017703,2]
[315591595,1709137832072,-75.53638903,0.00017711,2]
[315591597,1709137832081,-338.97305778,0.000189,2]
[315591599,1709137832090,-5444.5321749,0.00018999,2]
[315591601,1709137832100,-20222.04904661,0.00019,4]
[315591604,1709137832110,-621.74328682,0.00019111,2]
[315591606,1709137832119,-1213.29811129,0.00019177,2]
[315591609,1709137832130,-500.0,0.00019178,2]
[315591612,1709137832140,-500.0,0.00019178,2]
[315591614,1709137832149,-500.88794162,0.00019178,2]
[315591616,1709137832158,-500.0,0.00019178,2]
[315591617,1709137832168,-318.14686386,0.00019178,2]
[315591618,1709137832177,-500.768202,0.00019178,2]
[315591619,1709137832187,-503.01168124,0.00019178,2]
[315591620,1709137832196,-528.13257131,0.00019178,2]
[315591621,1709137832206,-581.16057071,0.00019178,2]
[315591622,1709137832216,-501.95371512,0.00019178,2]
[315591624,1709137832225,-645.12747004,0.00019178,2]
[315591627,1709137832234,-500.0,0.00019178,2]
[315591630,1709137832245,-500.0,0.00019178,2]
[315591633,1709137832254,-503.81362533,0.00019178,2]
[315591636,1709137832263,-500.0,0.00019178,2]
[315591638,1709137832273,-500.0,0.00019178,2]
[315591640,1709137832282,-501.69909095,0.00019178,2]
[315591642,1709137832291,-500.0,0.00019178,2]
[315591644,1709137832300,-500.0,0.00019178,2]
[315591646,1709137832309,-500.42379287,0.00019178,2]
[315591648,1709137832318,-368.65578206,0.00019178,2]
[315591650,1709137832327,-500.0,0.00019178,2]
[315591652,1709137832337,-500.0,0.00019178,2]
[315591654,1709137832346,-634.32478197,0.00019178,2]
[315591656,1709137832356,-500.0,0.00019178,2]
[315591658,1709137832366,-178.11388434,0.00019178,2]
[315591660,1709137832375,-500.0,0.00019178,2]
[315591662,1709137832384,-500.0,0.00019178,2]
[315591664,1709137832393,-500.0,0.00019178,2]
[315591666,1709137832403,-533.09,0.00019178,2]
[315591668,1709137832412,-560.61513212,0.00019178,2]
[315591670,1709137832421,-502.11011131,0.00019178,2]
[315591672,1709137832431,-500.0,0.00019178,2]
[315591674,1709137832440,-500.0,0.00019178,2]
[315591676,1709137832449,-462.3131418,0.00019178,2]
[315591678,1709137832458,-500.0,0.00019178,2]
[315591680,1709137832467,-397.61567573,0.00019178,2]
[315591682,1709137832476,-500.0,0.00019178,2]
[315591684,1709137832486,-500.0,0.00019178,2]
[315591685,1709137832496,-500.0,0.00019178,2]
[315591687,1709137832506,-507.68334626,0.00019178,2]
[315591690,1709137832516,-500.0,0.00019178,2]
[315591691,1709137832525,-504.92153729,0.00019178,2]
[315591693,1709137832535,-509.62583616,0.00019178,2]
[315591696,1709137832548,-500.0,0.00019178,2]
[315591698,1709137832557,-500.0,0.00019178,2]
[315591700,1709137832566,-500.0,0.00019178,2]
[315591702,1709137832576,-500.0,0.00019178,2]
[315591704,1709137832585,-503.35742389,0.00019178,2]
[315591705,1709137832597,-507.0068055,0.00019178,2]
[315591707,1709137832607,-283.71366824,0.00019178,2]
[315591709,1709137832617,-500.0,0.00019178,2]
[315591712,1709137832627,-500.0,0.00019178,2]
[315591713,1709137832636,-500.0,0.00019178,2]
[315591716,1709137832646,-610.448442,0.00019178,2]
[315591717,1709137832656,-500.0,0.00019178,2]
[315591719,1709137832665,-500.0,0.00019178,2]
[315591722,1709137832675,-500.0,0.00019178,2]
[315591724,1709137832683,-338.91589306,0.00019178,2]
[315591726,1709137832693,-495.0863917,0.00019178,2]
[315591728,1709137832702,-500.0,0.00019178,2]
[315591730,1709137832712,-500.0,0.00019178,2]
[315591731,1709137832721,-500.0,0.00019178,2]
[315591733,1709137832730,-151.0,0.00019178,2]
[315591735,1709137832740,-500.0,0.00019178,2]
[315591738,1709137832750,-500.0,0.00019178,2]
[315591740,1709137832760,-1038.55,0.00019178,2]
[315591742,1709137832771,-500.0,0.00019178,2]
[315591744,1709137832781,-501.46901324,0.00019178,2]
[315591745,1709137832790,-500.0,0.00019178,2]
[315591747,1709137832800,-614.19,0.00019178,2]
[315591749,1709137832809,-427.127043,0.00019178,2]
[315591751,1709137832819,-152.70981236,0.00019178,2]
[315591753,1709137832829,-500.0,0.00019178,2]
[315591755,1709137832839,-256.30798704,0.00019178,2]
[315591758,1709137832848,-502.08691135,0.00019178,2]
[315591759,1709137832858,-502.20378943,0.00019178,2]
[315591762,1709137832868,-500.63595938,0.00019178,2]
[315591763,1709137832878,-336.834071,0.00019178,2]
[315591765,1709137832887,-589.38,0.00019178,2]
[315591767,1709137832897,-500.0,0.00019178,2]
[315591769,1709137832906,-500.0,0.00019178,2]
[315591771,1709137832915,-500.0,0.00019178,2]
[315591773,1709137832924,-500.0,0.00019178,2]
[315591775,1709137832933,-500.0,0.00019178,2]
[315591777,1709137832944,-500.0,0.00019178,2]
[315591779,1709137832953,-500.0,0.00019178,2]
[315591781,1709137832962,-500.0,0.00019178,2]
[315591783,1709137832972,-500.0,0.00019178,2]
[315591785,1709137832981,-500.0,0.00019178,2]
[315591787,1709137832992,-500.35101391,0.00019178,2]
[315591789,1709137833002,-500.0,0.00019178,2]
[315591791,1709137833012,-253.29640782,0.00019178,2]
[315591793,1709137833021,-500.0,0.00019178,2]
[315591794,1709137833030,-500.0,0.00019178,2]
[315591795,1709137833039,-500.0,0.00019178,2]
[315591796,1709137833048,-991.88,0.00019178,2]
[315591797,1709137833058,-253.03741308,0.00019178,2]
[315591799,1709137833067,-500.0,0.00019178,2]
[315591801,1709137833077,-500.0,0.00019178,2]
[315591802,1709137833086,-500.0,0.00019178,2]
[315591804,1709137833095,-500.0,0.00019178,2]
[315591806,1709137833105,-500.0,0.00019178,2]
[315591807,1709137833114,-759.0,0.00019178,2]
[315591808,1709137833123,-500.0,0.00019178,2]
[315591809,1709137833133,-1008.42,0.00019178,2]
[315591811,1709137833142,-669.48,0.00019178,2]
[315591813,1709137833151,-500.0,0.00019178,2]
[315591815,1709137833160,-500.0,0.00019178,2]
[315591816,1709137833170,-500.0,0.00019178,2]
[315591818,1709137833179,-701.88,0.00019178,2]
[315591820,1709137833189,-545.48,0.00019178,2]
[315591822,1709137833198,-500.0,0.00019178,2]
[315591823,1709137833207,-500.0,0.00019178,2]
[315591824,1709137833218,-503.19472331,0.00019178,2]
[315591826,1709137833227,-312.75001907,0.00019178,2]
[315591827,1709137833237,-271.91794651,0.00019178,2]
[315591828,1709137833249,-242.96684262,0.00019178,2]
[315591829,1709137833259,-298.44393123,0.00019178,2]
[315591830,1709137833268,-500.0,0.00019178,2]
[315591831,1709137833278,-500.0,0.00019178,2]
[315591832,1709137833288,-500.0,0.00019178,2]
[315591833,1709137833298,-500.0,0.00019178,2]
[315591834,1709137833307,-172.23853414,0.00019178,2]
[315591835,1709137833321,-327.76146586,0.00019178,2]
[315591836,1709137833331,-500.0,0.00019178,2]
[315591837,1709137833340,-974.4,0.00019178,2]
[315591838,1709137833349,-861.71,0.00019178,2]
[315591839,1709137833359,-500.0,0.00019178,2]
[315591840,1709137833368,-6186.33,0.00019178,2]
[315591841,1709137833378,-500.0,0.00019178,2]
[315591842,1709137833387,-500.0,0.00019178,2]
[315591843,1709137833397,-500.0,0.00019178,2]
[315591844,1709137833406,-500.0,0.00019178,2]
[315591845,1709137833417,-500.0,0.00019178,2]
[315591846,1709137833427,-500.0,0.00019178,2]
[315591847,1709137833438,-500.0,0.00019178,2]
[315591848,1709137833447,-8774.16,0.00019178,2]
[315591849,1709137833457,-500.0,0.00019178,2]
[315591850,1709137833466,-500.0,0.00019178,2]
[315591851,1709137833475,-976.63,0.00019178,2]
[315591852,1709137833485,-500.0,0.00019178,2]
[315591853,1709137833497,-500.0,0.00019178,2]
[315591854,1709137833506,-500.0,0.00019178,2]
[315591855,1709137833515,-500.0,0.00019178,2]
[315591856,1709137833525,-500.0,0.00019178,2]
[315591857,1709137833534,-500.0,0.00019178,2]
[315591858,1709137833547,-500.0,0.00019178,2]
[315591859,1709137833556,-500.0,0.00019178,2]
[315591860,1709137833566,-500.0,0.00019178,2]
[315591861,1709137833576,-1400.93,0.00019178,2]
[315591862,1709137833587,-500.0,0.00019178,2]
[315591863,1709137833596,-11.35857377,0.00019178,2]
[315592012,1709137838962,-406.24842608,0.00017698,2]
[315592014,1709137838974,-121.51808744,0.00017698,2]
[315592015,1709137838984,-572.07736576,0.00019178,2]
[315592016,1709137838998,-2351.54406047,0.00019178,2]
[315592017,1709137839008,-3433.7,0.00019178,2]
[315592018,1709137839018,-215.56498591,0.00019178,2]
[315592019,1709137839026,-716.03,0.00019178,2]
[315592020,1709137839036,-129.97608206,0.00019178,2]
[315592021,1709137839048,-370.02391794,0.00019178,2]
[315592022,1709137839057,-188.36466729,0.00019178,2]
[315592023,1709137839066,-500.0,0.00019178,2]
[315592024,1709137839076,-910.39,0.00019178,2]
[315592025,1709137839086,-504.44765321,0.00019178,2]
[315592026,1709137839095,-500.0,0.00019178,2]
[315592027,1709137839106,-101.38232032,0.00019178,2]
[315592028,1709137839122,-1410.92767968,0.00019178,2]
[315592029,1709137839132,-609.09506785,0.00019178,2]
[315592030,1709137839141,-1251.85,0.00019178,2]
[315592031,1709137839150,-164.874523,0.00019178,2]
[315592033,1709137839159,-166.666666,0.00019178,2]
[315592034,1709137839169,-306.0,0.000192,2]
[315592035,1709137839179,-155.0,0.00019309,2]
[315592037,1709137839188,-1990.99720189,0.00019352,2]
[315592039,1709137839198,-200.6348293,0.0001937,2]
[315592041,1709137839207,-200.6348293,0.0001937,2]
[315592043,1709137839216,-200.2413971,0.0001937,2]
[315592045,1709137839226,-500.0,0.00019451,2]
[315592047,1709137839236,-500.0,0.00019451,2]
[315592049,1709137839249,-500.0,0.00019452,2]
[315592051,1709137839258,-500.0,0.00019452,2]
[315592053,1709137839268,-500.0,0.00019452,2]
[315592055,1709137839278,-533.09,0.00019452,2]
[315592057,1709137839288,-500.0,0.00019452,2]
[315592070,1709137839402,-500.0,0.00019452,2]
[315592073,1709137839412,-500.0,0.00019452,2]
[315592076,1709137839422,-500.0,0.00019452,2]
[315592079,1709137839432,-501.11821318,0.00019452,2]
[315592081,1709137839442,-500.0,0.00019452,2]
[315592083,1709137839451,-500.0,0.00019452,2]
[315592085,1709137839462,-151.0,0.00019452,2]
[315592087,1709137839473,-500.0,0.00019452,2]
[315592089,1709137839485,-500.0,0.00019452,2]
[315592091,1709137839497,-1038.55,0.00019452,2]
[315592093,1709137839506,-500.0,0.00019452,2]
[315592095,1709137839516,-614.19,0.00019452,2]
[315592097,1709137839525,-154.22848185,0.00019452,2]
[315592099,1709137839537,-589.38,0.00019452,2]
[315592101,1709137839549,-401.73174751,0.00019452,2]
[315592103,1709137839559,-991.88,0.00019452,2]
[315592105,1709137839568,-500.0,0.00019452,2]
[315592107,1709137839578,-759.0,0.00019452,2]
[315592109,1709137839590,-502.04463839,0.00019452,2]
[315592111,1709137839599,-1008.42,0.00019452,2]
[315592113,1709137839608,-669.48,0.00019452,2]
[315592115,1709137839618,-317.02712957,0.00019452,2]
[315592117,1709137839627,-500.0,0.00019452,2]
[315592119,1709137839638,-701.88,0.00019452,2]
[315592121,1709137839648,-545.48,0.00019452,2]
[315592123,1709137839658,-500.0,0.00019452,2]
[315592125,1709137839669,-500.0,0.00019452,2]
[315592127,1709137839680,-500.0,0.00019452,2]
[315592129,1709137839694,-974.4,0.00019452,2]
[315592131,1709137839705,-861.71,0.00019452,2]
[315592133,1709137839714,-6186.33,0.00019452,2]
[315592135,1709137839724,-500.0,0.00019452,2]
[315592137,1709137839736,-500.0,0.00019452,2]
[315592139,1709137839747,-500.0,0.00019452,2]
[315592141,1709137839757,-8774.16,0.00019452,2]
[315592143,1709137839767,-500.0,0.00019452,2]
[315592145,1709137839776,-976.63,0.00019452,2]
[315592147,1709137839786,-503.03792721,0.00019452,2]
[315592149,1709137839795,-378.73292585,0.00019452,2]
[315592151,1709137839804,-500.0,0.00019452,2]
[315592153,1709137839813,-500.0,0.00019452,2]
[315592155,1709137839822,-500.0,0.00019452,2]
[315592157,1709137839832,-500.0,0.00019452,2]
[315592159,1709137839841,-1400.93,0.00019452,2]
[315592161,1709137839852,-500.0,0.00019452,2]
[315592163,1709137839861,-2934.98,0.00019452,2]
[315592165,1709137839870,-3433.7,0.00019452,2]
[315592167,1709137839879,-716.03,0.00019452,2]
[315592169,1709137839888,-500.0,0.00019452,2]
[315592171,1709137839898,-910.39,0.00019452,2]
[315592173,1709137839908,-501.17354074,0.00019452,2]
[315592174,1709137839917,-1512.31,0.00019452,2]
[315592177,1709137839926,-1251.85,0.00019452,2]
[315592179,1709137839936,-5816.79180259,0.0001949,2]
[315592189,1709137840036,-2415.2325536,0.0001949,2]
[315592190,1709137840049,-200.5826354,0.000195,2]
[315592192,1709137840058,-153.0,0.000195,2]
[315592194,1709137840068,-200.6348293,0.000195,2]
[315592196,1709137840078,-153.0,0.00019619,2]
[315592198,1709137840088,-153.0,0.00019619,2]
[315592200,1709137840099,-400.7983018,0.00019619,2]
[315592202,1709137840109,-166.666666,0.00019627,2]
[315592204,1709137840119,-7855.44592279,0.00019662,2]
[315592206,1709137840129,-500.0,0.00019725,2]
[315592208,1709137840139,-500.0,0.00019726,2]
[315592210,1709137840147,-505.91702289,0.00019726,2]
[315592212,1709137840157,-500.0,0.00019726,2]
[315592214,1709137840166,-533.09,0.00019726,2]